[Event "Titled Tuesday Blitz March 14 Late 2023"]
[White "Lorenzo De La Riva, Lazaro"]
[Black "Gallegos Diaz, Carlos Alberto"]
[WhiteFideId "2268809"]
[BlackFideId "3900886"]
[WhiteElo "2294"]
[BlackElo "2362"]
[Result "0-1"]
[Round "09"]
[TimeControl "180+2"]
[Date "2023.03.14"]
[WhiteClock "0:00:04"]
[BlackClock "0:00:06"]

1. a3 {[%clk 0:03:00]}  d6 {[%clk 0:02:58]} 2. g3 {[%clk 0:02:45]}  e5 {[%clk 0:02:59]} 3. Bg2 {[%clk 0:02:45]}  Nf6 {[%clk 0:02:58]} 4. b4 {[%clk 0:02:43]}  Be7 {[%clk 0:02:59]} 5. Bb2 {[%clk 0:02:42]}  O-O {[%clk 0:02:59]} 6. c4 {[%clk 0:02:42]}  c6 {[%clk 0:02:58]} 7. e3 {[%clk 0:02:40]}  Nbd7 {[%clk 0:02:58]} 8. Ne2 {[%clk 0:02:39]}  Re8 {[%clk 0:02:58]} 9. O-O {[%clk 0:02:38]}  a5 {[%clk 0:02:57]} 10. Nbc3 {[%clk 0:02:36]}  axb4 {[%clk 0:02:51]} 11. axb4 {[%clk 0:02:37]}  Rxa1 {[%clk 0:02:51]} 12. Qxa1 {[%clk 0:02:35]}  Bf8 {[%clk 0:02:52]} 13. d4 {[%clk 0:02:32]}  exd4 {[%clk 0:02:48]} 14. Nxd4 {[%clk 0:02:26]}  Nb6 {[%clk 0:02:47]} 15. Qa2 {[%clk 0:02:16]}  d5 {[%clk 0:02:41]} 16. c5 {[%clk 0:02:14]}  Nc4 {[%clk 0:02:40]} 17. Rd1 {[%clk 0:02:07]}  Bg4 {[%clk 0:02:31]} 18. Re1 {[%clk 0:02:02]}  Qa8 {[%clk 0:02:26]} 19. Qb3 {[%clk 0:01:56]}  h5 {[%clk 0:02:12]} 20. Bc1 {[%clk 0:01:51]}  Ne5 {[%clk 0:01:46]} 21. h3 {[%clk 0:01:48]}  Bd7 {[%clk 0:01:40]} 22. Qc2 {[%clk 0:01:47]}  b6 {[%clk 0:01:25]} 23. Nb3 {[%clk 0:01:31]}  bxc5 {[%clk 0:01:16]} 24. Nxc5 {[%clk 0:01:32]}  Bxc5 {[%clk 0:01:13]} 25. bxc5 {[%clk 0:01:33]}  Qa5 {[%clk 0:01:11]} 26. f4 {[%clk 0:01:12]}  Nc4 {[%clk 0:00:54]} 27. e4 {[%clk 0:01:09]}  d4 {[%clk 0:00:44]} 28. Rd1 {[%clk 0:00:37]}  Qxc3 {[%clk 0:00:35]} 29. Qxc3 {[%clk 0:00:28]}  dxc3 {[%clk 0:00:36]} 30. Rd4 {[%clk 0:00:28]}  Nd2 {[%clk 0:00:28]} 31. e5 {[%clk 0:00:20]}  Nb3 {[%clk 0:00:21]} 32. Rd1 {[%clk 0:00:16]}  c2 {[%clk 0:00:20]} 33. Re1 {[%clk 0:00:15]}  Nxc1 {[%clk 0:00:20]} 34. Rxc1 {[%clk 0:00:14]}  Nd5 {[%clk 0:00:20]} 35. Rxc2 {[%clk 0:00:13]}  Be6 {[%clk 0:00:20]} 36. Rb2 {[%clk 0:00:13]}  g6 {[%clk 0:00:20]} 37. Rb7 {[%clk 0:00:12]}  Ra8 {[%clk 0:00:20]} 38. Be4 {[%clk 0:00:10]}  Ra3 {[%clk 0:00:20]} 39. Kf2 {[%clk 0:00:09]}  h4 {[%clk 0:00:19]} 40. g4 {[%clk 0:00:09]}  Nxf4 {[%clk 0:00:19]} 41. Bxc6 {[%clk 0:00:09]}  Rc3 {[%clk 0:00:18]} 42. Rb5 {[%clk 0:00:08]}  Nxh3+ {[%clk 0:00:17]} 43. Ke2 {[%clk 0:00:08]}  Nf4+ {[%clk 0:00:17]} 44. Kd2 {[%clk 0:00:09]}  Rc4 {[%clk 0:00:16]} 45. Bb7 {[%clk 0:00:08]}  h3 {[%clk 0:00:13]} 46. c6 {[%clk 0:00:08]}  h2 {[%clk 0:00:13]} 47. Rb1 {[%clk 0:00:09]}  Bd5 {[%clk 0:00:12]} 48. c7 {[%clk 0:00:09]}  Bxb7 {[%clk 0:00:11]} 49. Rxb7 {[%clk 0:00:07]}  Rxc7 {[%clk 0:00:11]} 50. Rxc7 {[%clk 0:00:07]}  h1=Q {[%clk 0:00:11]} 51. Ke3 {[%clk 0:00:08]}  Qg2 {[%clk 0:00:10]} 52. Kxf4 {[%clk 0:00:08]}  Qd2+ {[%clk 0:00:10]} 53. Ke4 {[%clk 0:00:05]}  Qe2+ {[%clk 0:00:10]} 54. Kd5 {[%clk 0:00:05]}  Qxg4 {[%clk 0:00:09]} 55. Rc6 {[%clk 0:00:05]}  Qd7+ {[%clk 0:00:08]} 56. Rd6 {[%clk 0:00:05]}  Qb5+ {[%clk 0:00:08]} 57. Ke4 {[%clk 0:00:05]}  Kg7 {[%clk 0:00:09]} 58. Kf4 {[%clk 0:00:05]}  Qe2 {[%clk 0:00:08]} 59. Rf6 {[%clk 0:00:04]}  Qd2+ {[%clk 0:00:07]} 60. Ke4 {[%clk 0:00:04]}  Qc2+ {[%clk 0:00:06]} 61. Kd4 {[%clk 0:00:04]}  Qb2+ {[%clk 0:00:06]} 62. Kd5 {[%clk 0:00:05]}  g5 {[%clk 0:00:06]} 63. Ke4 {[%clk 0:00:04]}  Qe2+ {[%clk 0:00:06]} 64. Kf5 {[%clk 0:00:04]}  Qg2 {[%clk 0:00:06]} 0-1


[Site "https://www.chess.com"]

[Event "Titled Tuesday Blitz March 14 Late 2023"]
[White "Manu_ChessExcelsior"]
[Black "Skaric, Djuro"]
[BlackFideId "934569"]
[WhiteElo "2042"]
[BlackElo "2282"]
[Result "1-0"]
[Round "09"]
[TimeControl "180+2"]
[Date "2023.03.14"]
[WhiteClock "0:00:13"]
[BlackClock "0:00:08"]

1. e4 {[%clk 0:03:00]}  e6 {[%clk 0:02:59]} 2. d4 {[%clk 0:02:59]}  d5 {[%clk 0:03:00]} 3. e5 {[%clk 0:03:00]}  c5 {[%clk 0:02:59]} 4. c3 {[%clk 0:02:59]}  Nc6 {[%clk 0:02:59]} 5. Nf3 {[%clk 0:02:59]}  Bd7 {[%clk 0:03:00]} 6. Be2 {[%clk 0:02:51]}  cxd4 {[%clk 0:03:00]} 7. cxd4 {[%clk 0:02:50]}  Qb6 {[%clk 0:03:00]} 8. a3 {[%clk 0:02:32]}  f6 {[%clk 0:03:00]} 9. exf6 {[%clk 0:02:29]}  Nxf6 {[%clk 0:03:00]} 10. O-O {[%clk 0:02:28]}  Bd6 {[%clk 0:02:59]} 11. b4 {[%clk 0:02:27]}  O-O {[%clk 0:02:58]} 12. Bb2 {[%clk 0:02:26]}  Ne4 {[%clk 0:02:54]} 13. Nbd2 {[%clk 0:02:13]}  Nxd2 {[%clk 0:02:44]} 14. Qxd2 {[%clk 0:02:11]}  Ne7 {[%clk 0:02:43]} 15. Ne5 {[%clk 0:02:03]}  Be8 {[%clk 0:02:41]} 16. Rac1 {[%clk 0:01:58]}  a6 {[%clk 0:02:26]} 17. Bg4 {[%clk 0:01:40]}  Bb8 {[%clk 0:02:07]} 18. Qg5 {[%clk 0:01:26]}  Bxe5 {[%clk 0:02:03]} 19. Qxe5 {[%clk 0:01:14]}  Bf7 {[%clk 0:01:58]} 20. Rc7 {[%clk 0:01:10]}  Ng6 {[%clk 0:01:53]} 21. Qg3 {[%clk 0:01:07]}  Rae8 {[%clk 0:01:50]} 22. Rfc1 {[%clk 0:01:03]}  Re7 {[%clk 0:01:43]} 23. h4 {[%clk 0:01:00]}  Rfe8 {[%clk 0:01:35]} 24. h5 {[%clk 0:00:59]}  Nf8 {[%clk 0:01:35]} 25. h6 {[%clk 0:00:59]}  gxh6 {[%clk 0:01:31]} 26. Bxe6+ {[%clk 0:00:54]}  Ng6 {[%clk 0:01:30]} 27. Bxf7+ {[%clk 0:00:36]}  Rxf7 {[%clk 0:01:30]} 28. Rxf7 {[%clk 0:00:35]}  Kxf7 {[%clk 0:01:31]} 29. Qf3+ {[%clk 0:00:34]}  Ke6 {[%clk 0:01:04]} 30. Rc5 {[%clk 0:00:33]}  Qd6 {[%clk 0:00:58]} 31. Bc1 {[%clk 0:00:33]}  Rf8 {[%clk 0:00:54]} 32. Qg4+ {[%clk 0:00:31]}  Ke7 {[%clk 0:00:50]} 33. Bxh6 {[%clk 0:00:31]}  Rf4 {[%clk 0:00:48]} 34. Bxf4 {[%clk 0:00:29]}  Nxf4 {[%clk 0:00:47]} 35. Qg5+ {[%clk 0:00:29]}  Kf7 {[%clk 0:00:47]} 36. Qe5 {[%clk 0:00:28]}  Qxe5 {[%clk 0:00:43]} 37. dxe5 {[%clk 0:00:28]}  Ke6 {[%clk 0:00:44]} 38. Rc7 {[%clk 0:00:27]}  d4 {[%clk 0:00:36]} 39. Kf1 {[%clk 0:00:25]}  d3 {[%clk 0:00:34]} 40. Ke1 {[%clk 0:00:23]}  Nxg2+ {[%clk 0:00:32]} 41. Kd2 {[%clk 0:00:23]}  Nf4 {[%clk 0:00:32]} 42. Rxh7 {[%clk 0:00:23]}  b5 {[%clk 0:00:26]} 43. Ra7 {[%clk 0:00:23]}  Kxe5 {[%clk 0:00:27]} 44. Rxa6 {[%clk 0:00:23]}  Kd4 {[%clk 0:00:25]} 45. Rd6+ {[%clk 0:00:22]}  Kc4 {[%clk 0:00:25]} 46. Rc6+ {[%clk 0:00:18]}  Kd4 {[%clk 0:00:25]} 47. Rc5 {[%clk 0:00:18]}  Nh3 {[%clk 0:00:22]} 48. f3 {[%clk 0:00:16]}  Ng1 {[%clk 0:00:21]} 49. Rf5 {[%clk 0:00:16]}  Nh3 {[%clk 0:00:20]} 50. Rf8 {[%clk 0:00:15]}  Kc4 {[%clk 0:00:19]} 51. f4 {[%clk 0:00:14]}  Ng1 {[%clk 0:00:19]} 52. f5 {[%clk 0:00:14]}  Nf3+ {[%clk 0:00:19]} 53. Kd1 {[%clk 0:00:15]}  Nd4 {[%clk 0:00:09]} 54. f6 {[%clk 0:00:15]}  Kb3 {[%clk 0:00:08]} 55. f7 {[%clk 0:00:15]}  Ne6 {[%clk 0:00:08]} 56. Re8 {[%clk 0:00:14]}  Nd4 {[%clk 0:00:07]} 57. f8=Q {[%clk 0:00:14]}  Ne2 {[%clk 0:00:08]} 58. Rxe2 {[%clk 0:00:13]} 1-0


[Site "https://www.chess.com"]

[Event "Titled Tuesday Blitz March 14 Late 2023"]
[White "Perske, Thore"]
[Black "Djordjevic, Dejan N"]
[WhiteFideId "12902195"]
[BlackFideId "913316"]
[WhiteElo "2336"]
[BlackElo "2261"]
[Result "1-0"]
[Round "09"]
[TimeControl "180+2"]
[Date "2023.03.14"]
[WhiteClock "0:00:05"]
[BlackClock "0:00:01"]

1. e4 {[%clk 0:02:58]}  c5 {[%clk 0:02:59]} 2. Nf3 {[%clk 0:02:58]}  Nc6 {[%clk 0:02:59]} 3. g3 {[%clk 0:02:59]}  Nf6 {[%clk 0:02:56]} 4. d3 {[%clk 0:02:59]}  d6 {[%clk 0:02:56]} 5. Bg2 {[%clk 0:02:59]}  g6 {[%clk 0:02:56]} 6. O-O {[%clk 0:03:00]}  Bg7 {[%clk 0:02:56]} 7. h3 {[%clk 0:03:00]}  O-O {[%clk 0:02:56]} 8. Nc3 {[%clk 0:03:01]}  a6 {[%clk 0:02:55]} 9. a4 {[%clk 0:03:01]}  Rb8 {[%clk 0:02:54]} 10. Be3 {[%clk 0:03:02]}  h6 {[%clk 0:02:53]} 11. Qd2 {[%clk 0:03:02]}  Kh7 {[%clk 0:02:53]} 12. Nh4 {[%clk 0:03:02]}  Nd4 {[%clk 0:02:39]} 13. f4 {[%clk 0:03:01]}  b5 {[%clk 0:02:38]} 14. axb5 {[%clk 0:03:01]}  axb5 {[%clk 0:02:38]} 15. g4 {[%clk 0:03:00]}  e6 {[%clk 0:02:24]} 16. Nf3 {[%clk 0:02:52]}  Ng8 {[%clk 0:02:09]} 17. Rab1 {[%clk 0:02:13]}  b4 {[%clk 0:01:48]} 18. Ne2 {[%clk 0:02:03]}  Nxe2+ {[%clk 0:01:44]} 19. Qxe2 {[%clk 0:02:04]}  f5 {[%clk 0:01:44]} 20. e5 {[%clk 0:01:56]}  Qc7 {[%clk 0:01:32]} 21. d4 {[%clk 0:01:51]}  cxd4 {[%clk 0:01:14]} 22. Bxd4 {[%clk 0:01:51]}  d5 {[%clk 0:01:12]} 23. Ra1 {[%clk 0:01:31]}  Bd7 {[%clk 0:01:01]} 24. gxf5 {[%clk 0:01:27]}  gxf5 {[%clk 0:00:59]} 25. Ra7 {[%clk 0:01:26]}  Rb7 {[%clk 0:00:58]} 26. Rfa1 {[%clk 0:01:26]}  Rfb8 {[%clk 0:00:57]} 27. Bf1 {[%clk 0:01:17]}  Ne7 {[%clk 0:00:56]} 28. Qf2 {[%clk 0:00:54]}  Ng6 {[%clk 0:00:49]} 29. Ne1 {[%clk 0:00:46]}  Bf8 {[%clk 0:00:36]} 30. Nd3 {[%clk 0:00:35]}  Be7 {[%clk 0:00:33]} 31. Kh2 {[%clk 0:00:31]}  Bb5 {[%clk 0:00:20]} 32. R1a5 {[%clk 0:00:20]}  Bh4 {[%clk 0:00:17]} 33. Qd2 {[%clk 0:00:17]}  Bxd3 {[%clk 0:00:15]} 34. Bxd3 {[%clk 0:00:18]}  Rxa7 {[%clk 0:00:15]} 35. Rxa7 {[%clk 0:00:18]}  Rb7 {[%clk 0:00:16]} 36. Rxb7 {[%clk 0:00:15]}  Qxb7 {[%clk 0:00:16]} 37. b3 {[%clk 0:00:15]}  Kg7 {[%clk 0:00:14]} 38. Kg2 {[%clk 0:00:12]}  Kf7 {[%clk 0:00:13]} 39. Kf3 {[%clk 0:00:12]}  Kg7 {[%clk 0:00:13]} 40. Qc1 {[%clk 0:00:12]}  Be7 {[%clk 0:00:12]} 41. Qa1 {[%clk 0:00:11]}  Qc8 {[%clk 0:00:11]} 42. Qa6 {[%clk 0:00:10]}  Qg8 {[%clk 0:00:10]} 43. Qb7 {[%clk 0:00:09]}  Nh4+ {[%clk 0:00:10]} 44. Ke2 {[%clk 0:00:08]}  Kf7 {[%clk 0:00:10]} 45. Bf2 {[%clk 0:00:08]}  Qg2 {[%clk 0:00:09]} 46. Qb6 {[%clk 0:00:07]}  Qf3+ {[%clk 0:00:09]} 47. Ke1 {[%clk 0:00:07]}  Ng2+ {[%clk 0:00:09]} 48. Kd2 {[%clk 0:00:06]}  Nxf4 {[%clk 0:00:09]} 49. Qe3 {[%clk 0:00:04]}  Qxe3+ {[%clk 0:00:07]} 50. Bxe3 {[%clk 0:00:05]}  Nxh3 {[%clk 0:00:06]} 51. c3 {[%clk 0:00:04]}  bxc3+ {[%clk 0:00:05]} 52. Kxc3 {[%clk 0:00:05]}  f4 {[%clk 0:00:04]} 53. Bd2 {[%clk 0:00:05]}  h5 {[%clk 0:00:02]} 54. b4 {[%clk 0:00:05]}  h4 {[%clk 0:00:02]} 55. Bf1 {[%clk 0:00:05]}  Ng5 {[%clk 0:00:01]} 56. Bxf4 {[%clk 0:00:05]}  Ne4+ {[%clk 0:00:01]} 57. Kd3 {[%clk 0:00:05]}  Bxb4 {[%clk 0:00:01]} 58. Bg2 {[%clk 0:00:05]} 1-0


[Site "https://www.chess.com"]

[Event "Titled Tuesday Blitz March 14 Late 2023"]
[White "Carbone, Diego"]
[Black "Jimenez, Joaquin"]
[WhiteFideId "3002179"]
[BlackFideId "109860"]
[WhiteElo "2266"]
[BlackElo "2163"]
[Result "1-0"]
[Round "09"]
[TimeControl "180+2"]
[Date "2023.03.14"]
[WhiteClock "0:00:41"]
[BlackClock "0:01:07"]

1. d4 {[%clk 0:02:57]}  Nf6 {[%clk 0:02:59]} 2. c4 {[%clk 0:02:57]}  e6 {[%clk 0:02:59]} 3. g3 {[%clk 0:02:56]}  Bb4+ {[%clk 0:02:57]} 4. Bd2 {[%clk 0:02:56]}  a5 {[%clk 0:02:56]} 5. Bg2 {[%clk 0:02:55]}  O-O {[%clk 0:02:55]} 6. Nf3 {[%clk 0:02:52]}  d6 {[%clk 0:02:53]} 7. Nc3 {[%clk 0:02:46]}  Nc6 {[%clk 0:02:52]} 8. O-O {[%clk 0:02:45]}  e5 {[%clk 0:02:50]} 9. d5 {[%clk 0:02:43]}  Ne7 {[%clk 0:02:48]} 10. Rc1 {[%clk 0:02:41]}  Ng6 {[%clk 0:02:30]} 11. a3 {[%clk 0:02:30]}  Bc5 {[%clk 0:02:29]} 12. Bg5 {[%clk 0:02:26]}  Ba7 {[%clk 0:02:25]} 13. Ne4 {[%clk 0:02:25]}  Bf5 {[%clk 0:02:17]} 14. Nfd2 {[%clk 0:02:24]}  Qe7 {[%clk 0:02:03]} 15. Kh1 {[%clk 0:02:23]}  Rfe8 {[%clk 0:01:58]} 16. b4 {[%clk 0:02:05]}  axb4 {[%clk 0:01:56]} 17. axb4 {[%clk 0:02:06]}  Nf8 {[%clk 0:01:55]} 18. Nxf6+ {[%clk 0:01:40]}  gxf6 {[%clk 0:01:54]} 19. Bh6 {[%clk 0:01:40]}  Bg6 {[%clk 0:01:53]} 20. e4 {[%clk 0:01:37]}  f5 {[%clk 0:01:49]} 21. exf5 {[%clk 0:01:33]}  Bxf5 {[%clk 0:01:49]} 22. Ne4 {[%clk 0:01:32]}  Bg6 {[%clk 0:01:45]} 23. Bg5 {[%clk 0:01:29]}  Bxe4 {[%clk 0:01:40]} 24. Bxe7 {[%clk 0:01:29]}  Bxg2+ {[%clk 0:01:40]} 25. Kxg2 {[%clk 0:01:30]}  Rxe7 {[%clk 0:01:40]} 26. Qg4+ {[%clk 0:01:28]}  Ng6 {[%clk 0:01:39]} 27. c5 {[%clk 0:01:28]}  dxc5 {[%clk 0:01:36]} 28. bxc5 {[%clk 0:01:29]}  Rd8 {[%clk 0:01:37]} 29. Rfd1 {[%clk 0:01:28]}  Red7 {[%clk 0:01:36]} 30. h4 {[%clk 0:01:26]}  Kf8 {[%clk 0:01:31]} 31. Qa4 {[%clk 0:01:25]}  Bb8 {[%clk 0:01:29]} 32. Qb4 {[%clk 0:01:22]}  Rxd5 {[%clk 0:01:13]} 33. Rxd5 {[%clk 0:01:20]}  Rxd5 {[%clk 0:01:14]} 34. c6+ {[%clk 0:01:08]}  Ne7 {[%clk 0:01:11]} 35. cxb7 {[%clk 0:01:02]}  Ke8 {[%clk 0:01:11]} 36. Ra1 {[%clk 0:00:55]}  Kd7 {[%clk 0:01:10]} 37. Ra8 {[%clk 0:00:52]}  Nc6 {[%clk 0:01:11]} 38. Qa4 {[%clk 0:00:48]}  Kd6 {[%clk 0:01:10]} 39. Ra6 {[%clk 0:00:42]}  Rc5 {[%clk 0:01:08]} 40. Rxc6+ {[%clk 0:00:40]}  Rxc6 {[%clk 0:01:07]} 41. Qa8 {[%clk 0:00:41]} 1-0


[Site "https://www.chess.com"]

[Event "Titled Tuesday Blitz March 14 Late 2023"]
[White "babbilator"]
[Black "Meunier-Pion, Jean"]
[BlackFideId "20685327"]
[WhiteElo "2224"]
[BlackElo "2124"]
[Result "0-1"]
[Round "09"]
[TimeControl "180+2"]
[Date "2023.03.14"]
[WhiteClock "0:00:08"]
[BlackClock "0:00:48"]

1. e4 {[%clk 0:03:00]}  e5 {[%clk 0:02:52]} 2. Nc3 {[%clk 0:03:00]}  Nf6 {[%clk 0:02:52]} 3. Nf3 {[%clk 0:03:01]}  Nc6 {[%clk 0:02:52]} 4. Bb5 {[%clk 0:03:00]}  Nd4 {[%clk 0:02:52]} 5. Ba4 {[%clk 0:02:57]}  Nxf3+ {[%clk 0:02:48]} 6. Qxf3 {[%clk 0:02:54]}  Bc5 {[%clk 0:02:44]} 7. d3 {[%clk 0:02:44]}  h6 {[%clk 0:02:36]} 8. g4 {[%clk 0:02:06]}  c6 {[%clk 0:02:31]} 9. Rg1 {[%clk 0:01:45]}  d6 {[%clk 0:02:22]} 10. Bb3 {[%clk 0:01:40]}  Be6 {[%clk 0:02:04]} 11. Be3 {[%clk 0:01:00]}  Bxb3 {[%clk 0:01:51]} 12. axb3 {[%clk 0:00:59]}  Bxe3 {[%clk 0:01:50]} 13. fxe3 {[%clk 0:00:59]}  O-O {[%clk 0:01:46]} 14. h4 {[%clk 0:00:52]}  Nh7 {[%clk 0:01:33]} 15. O-O-O {[%clk 0:00:47]}  Qxh4 {[%clk 0:01:31]} 16. Rh1 {[%clk 0:00:41]}  Qf6 {[%clk 0:01:29]} 17. Qg3 {[%clk 0:00:37]}  a5 {[%clk 0:01:16]} 18. Rdf1 {[%clk 0:00:37]}  Qg6 {[%clk 0:01:13]} 19. Rf5 {[%clk 0:00:33]}  b5 {[%clk 0:01:08]} 20. d4 {[%clk 0:00:31]}  f6 {[%clk 0:01:01]} 21. d5 {[%clk 0:00:28]}  b4 {[%clk 0:01:00]} 22. Ne2 {[%clk 0:00:20]}  Ng5 {[%clk 0:00:58]} 23. Qg2 {[%clk 0:00:17]}  a4 {[%clk 0:00:55]} 24. bxa4 {[%clk 0:00:17]}  Rxa4 {[%clk 0:00:54]} 25. b3 {[%clk 0:00:13]}  Ra2 {[%clk 0:00:51]} 26. Ng3 {[%clk 0:00:10]}  cxd5 {[%clk 0:00:48]} 27. exd5 {[%clk 0:00:10]}  Rc8 {[%clk 0:00:48]} 28. Rf2 {[%clk 0:00:08]} 0-1


[Site "https://www.chess.com"]

[Event "Titled Tuesday Blitz March 14 Late 2023"]
[White "Saravana, Krishnan P."]
[Black "Bogaudinov, Rushan"]
[WhiteFideId "5018382"]
[BlackFideId "4129288"]
[WhiteElo "2189"]
[BlackElo "1949"]
[Result "1-0"]
[Round "09"]
[TimeControl "180+2"]
[Date "2023.03.14"]
[WhiteClock "0:01:24"]
[BlackClock "0:00:19"]

1. e4 {[%clk 0:02:34]}  a6 {[%clk 0:02:58]} 2. d4 {[%clk 0:02:33]}  e6 {[%clk 0:02:58]} 3. Nf3 {[%clk 0:02:33]}  b5 {[%clk 0:02:56]} 4. Bd3 {[%clk 0:02:32]}  Bb7 {[%clk 0:02:56]} 5. O-O {[%clk 0:02:32]}  c5 {[%clk 0:02:56]} 6. c3 {[%clk 0:02:20]}  Nf6 {[%clk 0:02:53]} 7. Qe2 {[%clk 0:02:20]}  Be7 {[%clk 0:02:52]} 8. a4 {[%clk 0:02:17]}  c4 {[%clk 0:02:44]} 9. Bc2 {[%clk 0:02:16]}  d6 {[%clk 0:02:36]} 10. Na3 {[%clk 0:02:16]}  O-O {[%clk 0:02:30]} 11. Bg5 {[%clk 0:02:15]}  d5 {[%clk 0:02:23]} 12. e5 {[%clk 0:02:05]}  Ne4 {[%clk 0:02:20]} 13. Bxe7 {[%clk 0:02:05]}  Qxe7 {[%clk 0:02:21]} 14. axb5 {[%clk 0:02:05]}  Nd7 {[%clk 0:02:13]} 15. bxa6 {[%clk 0:02:03]}  Rxa6 {[%clk 0:02:11]} 16. Nxc4 {[%clk 0:02:03]}  dxc4 {[%clk 0:02:04]} 17. Rxa6 {[%clk 0:02:01]}  Bxa6 {[%clk 0:02:03]} 18. Qxe4 {[%clk 0:01:59]}  g6 {[%clk 0:02:02]} 19. Qc6 {[%clk 0:01:58]}  Nb8 {[%clk 0:01:59]} 20. Qe4 {[%clk 0:01:43]}  Bb7 {[%clk 0:01:57]} 21. Qe2 {[%clk 0:01:43]}  Bd5 {[%clk 0:01:48]} 22. Be4 {[%clk 0:01:42]}  Qb7 {[%clk 0:01:47]} 23. Bxd5 {[%clk 0:01:42]}  Qxd5 {[%clk 0:01:46]} 24. Nd2 {[%clk 0:01:41]}  Rc8 {[%clk 0:01:46]} 25. Ra1 {[%clk 0:01:41]}  Nd7 {[%clk 0:01:45]} 26. Ne4 {[%clk 0:01:41]}  Rb8 {[%clk 0:01:38]} 27. h4 {[%clk 0:01:39]}  Qb5 {[%clk 0:01:31]} 28. Ra7 {[%clk 0:01:38]}  Nxe5 {[%clk 0:00:44]} 29. Nf6+ {[%clk 0:01:30]}  Kg7 {[%clk 0:00:42]} 30. Qxe5 {[%clk 0:01:30]}  Qxe5 {[%clk 0:00:40]} 31. dxe5 {[%clk 0:01:30]}  Rxb2 {[%clk 0:00:40]} 32. Rc7 {[%clk 0:01:29]}  Re2 {[%clk 0:00:34]} 33. f4 {[%clk 0:01:28]}  g5 {[%clk 0:00:27]} 34. hxg5 {[%clk 0:01:27]}  Kg6 {[%clk 0:00:27]} 35. g4 {[%clk 0:01:27]}  h6 {[%clk 0:00:22]} 36. Rc8 {[%clk 0:01:23]}  hxg5 {[%clk 0:00:19]} 37. Rg8+ {[%clk 0:01:23]}  Kh6 {[%clk 0:00:19]} 38. fxg5# {[%clk 0:01:24]} 1-0


[Site "https://www.chess.com"]

[Event "Titled Tuesday Blitz March 14 Late 2023"]
[White "Shapiro, Viktor"]
[Black "Clawitter, Craig"]
[WhiteFideId "4175700"]
[BlackFideId "2023105"]
[WhiteElo "2152"]
[BlackElo "2241"]
[Result "1-0"]
[Round "09"]
[TimeControl "180+2"]
[Date "2023.03.14"]
[WhiteClock "0:00:18"]
[BlackClock "0:00:08"]

1. c4 {[%clk 0:02:53]}  e6 {[%clk 0:03:00]} 2. Nf3 {[%clk 0:02:52]}  Nf6 {[%clk 0:03:00]} 3. g3 {[%clk 0:02:53]}  d5 {[%clk 0:03:00]} 4. Bg2 {[%clk 0:02:53]}  Be7 {[%clk 0:03:00]} 5. O-O {[%clk 0:02:53]}  O-O {[%clk 0:03:01]} 6. Nc3 {[%clk 0:02:50]}  d4 {[%clk 0:02:58]} 7. Na4 {[%clk 0:02:50]}  c5 {[%clk 0:02:55]} 8. e3 {[%clk 0:02:47]}  Nc6 {[%clk 0:02:53]} 9. exd4 {[%clk 0:02:47]}  cxd4 {[%clk 0:02:52]} 10. d3 {[%clk 0:02:48]}  e5 {[%clk 0:02:49]} 11. Re1 {[%clk 0:02:48]}  Bd6 {[%clk 0:02:41]} 12. a3 {[%clk 0:02:47]}  a5 {[%clk 0:02:40]} 13. Bg5 {[%clk 0:02:46]}  h6 {[%clk 0:02:33]} 14. Bxf6 {[%clk 0:02:47]}  Qxf6 {[%clk 0:02:34]} 15. Nb6 {[%clk 0:02:47]}  Rb8 {[%clk 0:02:30]} 16. Nd2 {[%clk 0:02:43]}  Bf5 {[%clk 0:02:25]} 17. Ne4 {[%clk 0:02:41]}  Qd8 {[%clk 0:02:21]} 18. Nd5 {[%clk 0:02:37]}  Ne7 {[%clk 0:02:16]} 19. Nxd6 {[%clk 0:01:50]}  Qxd6 {[%clk 0:02:16]} 20. Nxe7+ {[%clk 0:01:47]}  Qxe7 {[%clk 0:02:17]} 21. f4 {[%clk 0:01:46]}  f6 {[%clk 0:02:11]} 22. Qh5 {[%clk 0:01:26]}  Bxd3 {[%clk 0:02:02]} 23. fxe5 {[%clk 0:01:26]}  Bxc4 {[%clk 0:01:56]} 24. Rad1 {[%clk 0:01:12]}  fxe5 {[%clk 0:01:48]} 25. Rxe5 {[%clk 0:01:10]}  Qf6 {[%clk 0:01:32]} 26. Ree1 {[%clk 0:00:48]}  Qf2+ {[%clk 0:00:59]} 27. Kh1 {[%clk 0:00:48]}  Qxb2 {[%clk 0:00:59]} 28. Qxa5 {[%clk 0:00:46]}  Rf2 {[%clk 0:00:50]} 29. Rb1 {[%clk 0:00:22]}  Qa2 {[%clk 0:00:40]} 30. Ra1 {[%clk 0:00:19]}  Qd2 {[%clk 0:00:34]} 31. Qxd2 {[%clk 0:00:18]}  Rxd2 {[%clk 0:00:35]} 32. Rad1 {[%clk 0:00:18]}  Rxd1 {[%clk 0:00:29]} 33. Rxd1 {[%clk 0:00:19]}  d3 {[%clk 0:00:30]} 34. Kg1 {[%clk 0:00:19]}  b5 {[%clk 0:00:29]} 35. Kf2 {[%clk 0:00:19]}  Re8 {[%clk 0:00:29]} 36. Bf1 {[%clk 0:00:18]}  Rf8+ {[%clk 0:00:27]} 37. Ke3 {[%clk 0:00:18]}  Re8+ {[%clk 0:00:12]} 38. Kd4 {[%clk 0:00:18]}  Rd8+ {[%clk 0:00:12]} 39. Kc3 {[%clk 0:00:19]}  Rc8 {[%clk 0:00:11]} 40. Kb4 {[%clk 0:00:18]}  Rf8 {[%clk 0:00:10]} 41. a4 {[%clk 0:00:18]}  Rxf1 {[%clk 0:00:08]} 42. Rxf1 {[%clk 0:00:18]}  d2 {[%clk 0:00:09]} 43. Rd1 {[%clk 0:00:18]}  bxa4 {[%clk 0:00:08]} 44. Kxc4 {[%clk 0:00:18]}  a3 {[%clk 0:00:08]} 45. Rxd2 {[%clk 0:00:18]} 1-0


[Site "https://www.chess.com"]

[Event "Titled Tuesday Blitz March 14 Late 2023"]
[White "Torres Dominguez, David"]
[Black "Barash, Anton"]
[WhiteFideId "2220857"]
[BlackFideId "30935229"]
[WhiteElo "1999"]
[BlackElo "2319"]
[Result "0-1"]
[Round "09"]
[TimeControl "180+2"]
[Date "2023.03.14"]
[WhiteClock "0:00:02"]
[BlackClock "0:00:42"]

1. e4 {[%clk 0:02:59]}  e6 {[%clk 0:03:00]} 2. d4 {[%clk 0:02:56]}  d5 {[%clk 0:03:00]} 3. exd5 {[%clk 0:02:56]}  exd5 {[%clk 0:03:01]} 4. Bd3 {[%clk 0:02:56]}  Bd6 {[%clk 0:02:57]} 5. Qf3 {[%clk 0:02:56]}  Nf6 {[%clk 0:02:52]} 6. h3 {[%clk 0:02:55]}  O-O {[%clk 0:02:51]} 7. Ne2 {[%clk 0:02:56]}  Re8 {[%clk 0:02:45]} 8. Nc3 {[%clk 0:02:55]}  c6 {[%clk 0:02:41]} 9. Bf4 {[%clk 0:02:54]}  Bxf4 {[%clk 0:02:35]} 10. Qxf4 {[%clk 0:02:54]}  Qb6 {[%clk 0:02:35]} 11. O-O-O {[%clk 0:02:48]}  Nbd7 {[%clk 0:02:31]} 12. g4 {[%clk 0:02:48]}  Nf8 {[%clk 0:02:28]} 13. g5 {[%clk 0:02:46]}  Ne4 {[%clk 0:02:10]} 14. Nxe4 {[%clk 0:01:51]}  dxe4 {[%clk 0:02:06]} 15. Bxe4 {[%clk 0:01:50]}  Ne6 {[%clk 0:02:06]} 16. Qg3 {[%clk 0:01:50]}  Qa5 {[%clk 0:01:59]} 17. Kb1 {[%clk 0:01:43]}  Qxg5 {[%clk 0:01:50]} 18. Qd3 {[%clk 0:01:39]}  Qh6 {[%clk 0:01:40]} 19. Rhg1 {[%clk 0:01:36]}  g6 {[%clk 0:01:37]} 20. Ng3 {[%clk 0:01:32]}  Nf4 {[%clk 0:01:30]} 21. Qa3 {[%clk 0:01:30]}  Be6 {[%clk 0:01:23]} 22. Bf5 {[%clk 0:01:19]}  Nxh3 {[%clk 0:01:18]} 23. Bxh3 {[%clk 0:01:09]}  Qxh3 {[%clk 0:01:18]} 24. Rh1 {[%clk 0:01:01]}  Qg2 {[%clk 0:01:18]} 25. Rdg1 {[%clk 0:01:00]}  Qxf2 {[%clk 0:01:18]} 26. Ne4 {[%clk 0:00:55]}  Qxd4 {[%clk 0:01:08]} 27. Ng5 {[%clk 0:00:40]}  Bd5 {[%clk 0:01:06]} 28. Qh3 {[%clk 0:00:13]}  Bxh1 {[%clk 0:01:05]} 29. Qxh1 {[%clk 0:00:11]}  h5 {[%clk 0:00:54]} 30. Nf3 {[%clk 0:00:10]}  Qe4 {[%clk 0:00:51]} 31. Qxh5 {[%clk 0:00:09]}  Rad8 {[%clk 0:00:47]} 32. Qh3 {[%clk 0:00:02]}  Qe1+ {[%clk 0:00:42]} 0-1


[Site "https://www.chess.com"]